Cogmind - Beta 17 @@@ ROGUE MODE // 2026.06.24 @ 18:25:16 Player: D4-RLM Result: Destroyed by D-53 Grenadier with Mini Grenade Launcher Performance ------------- Evolutions (1) 500 Regions Visited (4) 800 Robots Destroyed (30) 150 Value Destroyed (448) 448 Prototype IDs (4) 80 Alien Tech Used (0) 0 Bonus (125) 125 TOTAL SCORE: 2103 Bonus ------- Follower Combat Kills 125 Cogmind --------- Core Integrity 0/400 Matter 291/300 Energy 100/100 System Corruption 4% Temperature Cool (0) Movement Core (350) Ox6 Location -9/Mines Parts ------- > --- POWER (1) -------- (None) > --- PROPULSION (3) --- (None) > --- UTILITY (3) ------ Large Storage Unit > --- WEAPON (2) ------- (None) > --- INVENTORY (15) --- Ion Engine Light Treads Light Treads Wheel Compact Wheel Large Storage Unit Beam Rifle Particle Gun Advanced Beam Cannon Slug Cannon Grenade Launcher Mining Laser Hammer Peak State ------------ > --- POWER ------------ Light Nuclear Core > --- PROPULSION ------- Light Treads Light Treads Light Treads > --- UTILITY ---------- Heat Sink Large Storage Unit Medium Armor Plating > --- WEAPON ----------- Advanced Beam Cannon Shotgun > --- INVENTORY -------- Ion Engine Light Treads Light Treads Wheel Compact Wheel Large Storage Unit Small Laser Beam Rifle Particle Gun Advanced Beam Cannon Light Assault Rifle Slug Cannon Grenade Launcher Mining Laser Hammer [Rating: 17] Favorites ----------- Power Light Ion Engine Engine Light Ion Engine Power Core Light Nuclear Core Propulsion Light Treads Treads Light Treads Wheel Compact Wheel Utility Large Storage Unit Device Seismic Detector Storage Large Storage Unit Protection Medium Armor Plating Weapon Light Assault Rifle Energy Gun Improved EM Shotgun Energy Cannon Advanced Beam Cannon Ballistic Gun Light Assault Rifle Ballistic Cannon Slug Cannon Launcher Grenade Launcher Build | -11 -10 -10 -9 -9 ------- Run | Yrd Mat Min Mat Min Slots Evolved 2 | . . . 2 . Power . | . . . . . Propulsion 1 | . . . 1 . Utility 1 | . . . 1 . Weapon . | . . . . . Parts Attached 22 | 9 2 . 9 2 Power 2 | 1 . . 1 . Engine 1 | 1 . . . . Core 1 | . . . 1 . Reactor . | . . . . . Propulsion 6 | 4 . . 2 . Treads 4 | 2 . . 2 . Leg . | . . . . . Wheel 2 | 2 . . . . Hover . | . . . . . Flight . | . . . . . Utility 6 | 2 1 . 2 1 Device 2 | 1 . . 1 . Storage 2 | 1 1 . . . Processor . | . . . . . Hackware . | . . . . . Protection 2 | . . . 1 1 Artifact . | . . . . . Weapon 8 | 2 1 . 4 1 Energy Gun 1 | . . . 1 . Energy Cannon 1 | . . . 1 . Ballistic Gun 4 | 2 . . 1 1 Ballistic Cannon 1 | . . . 1 . Launcher 1 | . 1 . . . Special Weapon . | . . . . . Impact Weapon . | . . . . . Slashing Weapon . | . . . . . Piercing Weapon . | . . . . . Special Melee Weapon . | . . . . . Unidentified Prototypes 2 | . . . 2 . Parts Lost 11 | . . . 1 10 Power 1 | . . . . 1 Propulsion 3 | . . . . 3 Utility 4 | . . . 1 3 Weapon 3 | . . . . 3 Highest Loss Streak 9 | . . . 1 9 To Critical Strikes . | . . . . . Average Backups 9 | 3 4 7 12 14 Power . | . 1 1 1 1 Propulsion 2 | 1 2 2 2 4 Utility . | . . 1 1 1 Weapon 4 | . 1 3 7 7 Tool/Special . | . . . . . Unused Backups 12 | . . . 3 9 Power 1 | . . . . 1 Propulsion 2 | . . . . 2 Utility 1 | . . . . 1 Weapon 8 | . . . 3 5 Tool/Special . | . . . . . Average Slot Usage (%) 96 | . 100 100 91 89 Engine 10 | . 14 14 9 . Core 2 | . . . 1 10 Treads 29 | . 28 28 30 30 Device 12 | . 14 14 10 9 Storage 12 | . 14 14 11 11 Protection 2 | . . . 6 6 Energy Cannon 2 | . . . 2 9 Ballistic Gun 20 | . 27 27 12 10 Ballistic Cannon 1 | . . . 4 . Peak Build Rating 17 | 7 7 8 17 17 Average Rating 9 | 5 7 7 12 15 On Entrance 7 | . 7 7 8 17 Avg Prop Armor Cover (%) 7 | . . . . 7 Naked Turns . | . . . . . Heaviest Build 40 | 11 26 28 40 40 Greatest Support 60 | 40 40 40 60 60 Greatest Overweight (x) 6 | . . . . 6 Average Overweight (x) . | . . . . . Largest Inventory Capacity 15 | 8 15 15 15 15 Average Capacity 12 | 7 8 15 15 15 Most Carried 15 | 4 7 9 15 15 Average Carried 9 | 3 4 7 12 14 Final Capacity 15 | 8 15 15 15 15 Final Carried 15 | 4 7 9 15 13 Class Distribution -------------------- 83% | Mutant 16% | Scavenger-Mutant Dominant Class ---------------- Mutant | -10/Materials Mutant | -10/Mines Mutant | -9/Materials Scavenger-Mutant | -9/Mines Resources | -11 -10 -10 -9 -9 ----------- Run | Yrd Mat Min Mat Min Matter Collected 770 | 340 96 50 178 106 Remotely . | . . . . . Salvage Created 846 | 138 206 24 350 128 Parts 55 | 9 12 5 22 7 Haulers Intercepted 4 | . 2 . 2 . Recyclers Shooed 1 | . . . 1 . Parts Field Recycled . | . . . . . Retrieved Matter . | . . . . . Parts Self-Destructed . | . . . . . Prevented . | . . . . . Parts Restored . | . . . . . Kills | -11 -10 -10 -9 -9 ------- Run | Yrd Mat Min Mat Min Combat Hostiles Destroyed 26 | . 5 3 8 10 Guns 11 | . 2 . 3 6 Cannons 6 | . . . 2 4 AOE 9 | . 3 3 3 . Classes Destroyed 8 | 2 3 . 2 1 Worker 1 | . . . 1 . Tunneler 4 | 4 . . . . Hauler 4 | . 2 . 2 . Recycler 1 | 1 . . . . Swarmer 13 | . 3 3 3 4 Grunt 6 | . 2 . 4 . Sentry 1 | . . . 1 . Assembled 6 | . . . . 6 Best Kill Streak 10 | 2 3 3 6 10 Combat Bots Only 10 | . 3 3 5 10 Max Kills in Single Turn 3 | 1 3 2 2 1 Gunslinging . | . . . . . Exploded 3 | . 3 2 2 . Melee . | . . . . . Uniques/NPCs Destroyed . | . . . . . Combat | -11 -10 -10 -9 -9 -------- Run | Yrd Mat Min Mat Min Hostile Shots Fired 106 | . 21 12 19 54 Missed 23 | . 4 6 7 6 Hits 83 | . 17 6 12 48 Projectile 83 | . 17 6 12 48 AOE 24 | . . . . 24 Critical Strikes 1 | . 1 . . . Part Disruptions 2 | . . . . 2 Damage Taken 1777 | . 252 45 176 1304 Core 500 | . 96 . 42 362 Absorbed by Shields . | . . . . . Core Remaining (%) 80 | 100 . 61 . . Volleys Fired 103 | 25 29 3 22 24 Largest 2 | 2 2 1 2 2 Hottest 91 | 40 40 30 91 91 Shots Fired 177 | 50 57 3 30 37 Gun 151 | 50 56 . 21 24 Cannon 19 | . . . 6 13 Launcher 7 | . 1 3 3 . Special . | . . . . . Kinetic 152 | 50 56 . 22 24 Thermal 18 | . . . 5 13 Explosive 7 | . 1 3 3 . Electromagnetic . | . . . . . Robot Hit Streak 9 | 4 9 2 8 6 Robot Miss Streak 6 | 3 6 1 2 4 Penetration Max . | . . . . . Secondary Targets . | . . . . . Shots Hit Robots 106 | 25 35 2 20 24 Core Hits 63 | 11 16 4 16 16 Critical Kills . | . . . . . Critical Parts Destroyed 1 | . . . 1 . Critical Strikes 1 | . . . 1 . Destroy 1 | . . . 1 . Melee Attacks . | . . . . . Impact . | . . . . . Slashing . | . . . . . Piercing . | . . . . . Sneak Attacks . | . . . . . Combat Hostiles . | . . . . . Follow-up Attacks . | . . . . . Damage Inflicted 1644 | 213 373 141 498 419 Guns 885 | 213 282 . 132 258 Cannons 280 | . . . 119 161 Explosions 479 | . 91 141 247 . Melee . | . . . . . Ramming . | . . . . . Kinetic 924 | 213 282 . 171 258 Thermal 241 | . . . 80 161 Explosive 479 | . 91 141 247 . Electromagnetic . | . . . . . Impact . | . . . . . Slashing . | . . . . . Piercing . | . . . . . Highest Corruption 4 | . . . 4 4 Average Corruption 4 | . . . 4 4 Corruption Purged . | . . . . . Corruption Blocked . | . . . . . Effects 17 | . . . 4 13 Message Errors 4 | . . . . 4 Matter Fused 5 | . . . 1 4 Heat Flow Errors 1 | . . . . 1 Energy Discharges 2 | . . . 1 1 Data Loss (minor) 2 | . . . 1 1 Data Loss (major) 1 | . . . . 1 Misfires 1 | . . . 1 . Weapon Failures 1 | . . . . 1 Overload Shots . | . . . . . Overflow Damage . | . . . . . Projectiles . | . . . . . Explosions . | . . . . . Melee . | . . . . . Knockbacks . | . . . . . Impact . | . . . . . Kinetic . | . . . . . Secondary . | . . . . . Self-Inflicted Damage 20 | . 20 . . . Shots 1 | . 1 . . . Rammed . | . . . . . Targets Rammed . | . . . . . Kicked . | . . . . . Crushed . | . . . . . Highest Temperature 213 | . 43 . 12 213 Average Temperature 49 | . 19 . 8 76 Received Heat Transfer 356 | . 138 . 54 164 Siege Activations . | . . . . . Martial Activations . | . . . . . Shielding Activations . | . . . . . Robots Disrupted . | . . . . . Combat Hostiles . | . . . . . Robots Corrupted . | . . . . . Combat Hostiles . | . . . . . Parts Fried . | . . . . . Impact Corruptions . | . . . . . Robots Melted . | . . . . . Combat Hostiles . | . . . . . Parts Melted . | . . . . . Heat Transferred 444 | . . . 148 296 Parts Sabotaged . | . . . . . Parts Stolen . | . . . . . Parts Stripped . | . . . . . Power Chain Reactions . | . . . . . Alert | -11 -10 -10 -9 -9 ------- Run | Yrd Mat Min Mat Min Maximum Alert Level 1 | . . . 1 . Low Security (%) 97 | 100 100 100 89 100 Level 1 2 | . . . 10 . Level 2 . | . . . . . Level 3 . | . . . . . Level 4 . | . . . . . Level 5 . | . . . . . High Security . | . . . . . Max Security . | . . . . . Peak Influence 231 | 10 83 88 231 90 Initial 19 | . . . . 19 Average 22 | 1 19 9 46 21 Influence Increases 769 | 25 162 88 404 90 Destroy 0b10 Robot/C 500 | . 100 60 260 80 Destroy 0b10 Robot/NC 55 | 25 10 . 20 . Destroy Leader 110 | . 24 10 66 10 Allied During Kill 38 | . . . 38 . Successful Hack 7 | . 5 . 2 . Destroy Structure 44 | . 8 18 18 . Lose Combat Pursuer 15 | . 15 . . . Influence Decreases 769 | 25 162 88 352 142 Entered New Map 33 | . . . . 33 Time Decay 547 | 25 162 88 172 100 Lost Part 10 | . . . 10 . Lost Ally 29 | . . . 20 9 Purge Threat 150 | . . . 150 . Squads Dispatched 1 | . 1 . . . Investigation . | . . . . . Extermination . | . . . . . Reinforcement 1 | . 1 . . . Assault . | . . . . . Garrison . | . . . . . Intercept . | . . . . . Searches Triggered . | . . . . . Construction Impeded . | . . . . . Haulers Reinforced . | . . . . . Active Scanning Responses . | . . . . . Cargo Convoy Interrupts . | . . . . . Stealth | -11 -10 -10 -9 -9 --------- Run | Yrd Mat Min Mat Min Distress Signals 4 | . 3 . 1 . Communications Jammed . | . . . . . Distress Signals . | . . . . . Times Spotted 53 | . 14 3 15 21 Peak Tracking Total 13 | . 4 3 8 13 Tactical Retreats 2 | . 1 . . 1 Traps | -11 -10 -10 -9 -9 ------- Run | Yrd Mat Min Mat Min Traps Triggered . | . . . . . Indirectly . | . . . . . Trap Hack Attempts . | . . . . . Triggered . | . . . . . Disarmed . | . . . . . Reprogrammed . | . . . . . Reused . | . . . . . Traps Extracted . | . . . . . Installed . | . . . . . Triggered . | . . . . . Machines | -11 -10 -10 -9 -9 ---------- Run | Yrd Mat Min Mat Min Machines Disabled . | . . . . . Max in Single Turn . | . . . . . Machines Repaired . | . . . . . Machines Dismantled . | . . . . . Machines Sabotaged . | . . . . . Overloaded Fab Kills . | . . . . . Hacking | -11 -10 -10 -9 -9 --------- Run | Yrd Mat Min Mat Min Machines Accessed 5 | . 1 . 4 . Terminals 2 | . 1 . 1 . Fabricators . | . . . . . Repair Stations . | . . . . . Recycling Units 1 | . . . 1 . Scanalyzers 2 | . . . 2 . Garrison Access . | . . . . . Total Hacks 9 | . 2 . 7 . Successful 7 | . 1 . 6 . Failed 1 | . 1 . . . Catastrophic 1 | . 1 . . . Database Lockouts 1 | . . . 1 . Manual . | . . . . . Terminals 4 | . 2 . 2 . Fabricators . | . . . . . Repair Stations . | . . . . . Recycling Units 1 | . . . 1 . Scanalyzers 4 | . . . 4 . Garrison Access . | . . . . . Terminal Hacks 3 | . 1 . 2 . Prototype ID Bank 1 | . 1 . . . Unreport Threat 1 | . . . 1 . Hauler Manifests 1 | . . . 1 . Fabricator Hacks . | . . . . . Repair Station Hacks . | . . . . . Recycling Unit Hacks 1 | . . . 1 . Report Inventory 1 | . . . 1 . Scanalyzer 3 | . . . 3 . Retrieve Study 3 | . . . 3 . Garrison Access Hacks . | . . . . . Unauthorized Hacks . | . . . . . Terminals . | . . . . . Fabricators . | . . . . . Repair Stations . | . . . . . Recycling Units . | . . . . . Scanalyzers . | . . . . . Garrison Access . | . . . . . Data Cores Recovered . | . . . . . Used . | . . . . . Hacking Detections 3 | . 1 . 2 . Full Trace Events . | . . . . . Feedback Events . | . . . . . Feedback Blocked . | . . . . . Robot Schematics Acquired . | . . . . . Robots Built . | . . . . . Authchips . | . . . . . Time . | . . . . . Total Robot Build Rating . | . . . . . Part Schematics Acquired . | . . . . . Parts Built . | . . . . . Authchips . | . . . . . Time . | . . . . . Total Part Build Rating . | . . . . . Part Studies Acquired 3 | . . . 3 . Parts Repaired . | . . . . . Time . | . . . . . Parts Recycled . | . . . . . Recycled Matter . | . . . . . Retrieved Matter . | . . . . . Retrieved Components . | . . . . . Parts Scanalyzed . | . . . . . Part Schematics Acquired . | . . . . . Parts Damaged . | . . . . . Bothacking | -11 -10 -10 -9 -9 ------------ Run | Yrd Mat Min Mat Min Used RIF Installer . | . . . . . Robots Hacked . | . . . . . Non-combat . | . . . . . Combat . | . . . . . Robot Hacks Applied . | . . . . . Relay Couplers Released . | . . . . . Fabnet Peak Effective % . | . . . . . Robots Rewired . | . . . . . Allies Hacked . | . . . . . Hacks Repelled . | . . . . . Allies | -11 -10 -10 -9 -9 -------- Run | Yrd Mat Min Mat Min Total Allies 3 | . . 3 . . Largest Group 3 | . . 3 3 1 Highest-Rated Group 40 | . . 40 40 16 Highest-Rated Ally 16 | . . 16 16 16 Total Orders . | . . . . . Ally Attacks 29 | . . . 26 3 Total Damage 290 | . . . 258 32 Kills 8 | . . . 7 1 Allies Corrupted . | . . . . . Allies Melted . | . . . . . Intel | -11 -10 -10 -9 -9 ------- Run | Yrd Mat Min Mat Min Active Infowar (turns) 1594 | 19 648 830 97 . Seismic 1594 | 19 648 830 97 . Robot Analysis Total . | . . . . . Derelict Logs Recovered 1 | . . 1 . . Drone Launches . | . . . . . Drone Recoveries . | . . . . . Exploration | -11 -10 -10 -9 -9 ------------- Run | Yrd Mat Min Mat Min Turns Passed 2829 | 229 648 830 723 399 Spaces Moved 1538 | 99 344 508 381 206 Core 7 | 4 . . . 3 Treads 1522 | 86 344 508 381 203 Legs . | . . . . . Wheels 9 | 9 . . . . Hover . | . . . . . Flight . | . . . . . Fastest Speed 50 | 50 160 160 160 160 Average Speed 159 | 149 160 160 160 162 Slowest Speed 350 | 160 160 160 160 350 Overloaded Moves . | . . . . . Propulsion Burnouts . | . . . . . Robots Hopped . | . . . . . Potential Cave-ins . | . . . . . Cave-ins Triggered . | . . . . . Exploration Rate (%) 43 | 5 47 99 29 39 Regions Visited 4 Branch Regions 2 Pre-discovered Areas 1 | . . 1 . . Known Exits Taken 1 | . . . 1 . Unknown Exits Taken 3 | 1 1 1 . . Scrap Searched 1 | . . 1 . . Spaces Dug . | . . . . . Terrain Destroyed 53 | . 8 22 23 . Melee . | . . . . . Projectile . | . . . . . AOE 53 | . 8 22 23 . Terrain Rammed . | . . . . . Walls Destroyed . | . . . . . Machines Disabled . | . . . . . Actions | -11 -10 -10 -9 -9 --------- Run | Yrd Mat Min Mat Min Total 1753 | 136 395 521 469 232 Wait 60 | . 16 7 37 . Move 1534 | 98 343 507 380 206 Hop . | . . . . . Pick Up 21 | 4 3 2 12 . Fast Attach 10 | 7 . . 3 . Attach 3 | . . . 1 2 Detach . | . . . . . Swap 13 | 2 3 2 6 . Drop 9 | . 1 . 8 . Fire 103 | 25 29 3 22 24 Melee . | . . . . . Ram . | . . . . . Kick . | . . . . . Crush . | . . . . . Escape Stasis . | . . . . . Rewire . | . . . . . Trap . | . . . . . Miscellaneous . | . . . . . Route ------- -11/Scrapyard -10/Materials (discovered 3 exits: *Mat / [*Min x2]) -10/Mines (discovered 2 exits: *Mat x2) -9/Materials (discovered 2 exits: *Min x2) -9/Mines (discovered 1 exit: [*Mat]) History --------- Turn | Location | Event 67 | -11/Scrapyard | Discovered new exit (range 14) 230 | -11/Scrapyard | Entered Materials 250 | -10/Materials | Discovered new exit (range 13) 308 | -10/Materials | Build established: Mutant 345 | -10/Materials | Discovered new exit (range 9) 514 | -10/Materials | Discovered new exit (range 13) 878 | -10/Materials | Entered Mines 881 | -10/Mines | Learned location of Storage (-8) 1010 | -10/Mines | Discovered new exit (range 7) 1247 | -10/Mines | A weapon hastily lodged in a ceiling crevice suddenly fell to the ground 1620 | -10/Mines | Learned 2 Materials zone layouts 1623 | -10/Mines | Discovered new exit (range 10) 1663 | -10/Mines | Assisted by bots powering up and referring to "LRC-V3" 1708 | -10/Mines | Entered Materials 1708 | -9/Materials | Accompanied by 3 allies 1708 | -9/Materials | Evolved 2 slots: Propulsion x1, Utility x1 1709 | -9/Materials | Identified exit to Mines 2101 | -9/Materials | Central database locked down 2374 | -9/Materials | Discovered exit to Mines (range 7) 2431 | -9/Materials | Entered Mines 2431 | -9/Mines | Accompanied by 1 ally 2432 | -9/Mines | Assembled infested the area 2437 | -9/Mines | Assisted by a Guerilla fighting off Assembled 2563 | -9/Mines | Destroyed 10 combat bots 2637 | -9/Mines | Build established: Scavenger-Mutant 2726 | -9/Mines | Discovered new exit (range 15) 2798 | -9/Mines | Core integrity fell below 50% 2820 | -9/Mines | Core integrity fell below 20% 2830 | -9/Mines | Destroyed by D-53 Grenadier with Mini Grenade Launcher Last Messages --------------- 02801_ The unstable cave ceiling collapses. 02804_ U-05 Engineer builds a Wall. 02807_ The unstable cave ceiling collapses. 02809_ U-05 Engineer lays Concrete. 02811_ K-01 Serf destroyed. 02811_ U-05 Engineer lays Concrete. 02812_ Lgt. Treads+ destroyed. 02812_ Lgt. Nuclear Core destroyed. 02812_ Lgt. Treads+ destroyed. 02812_ U-05 Engineer lays Concrete. 02813_ U-05 Engineer builds a Wall. 02815_ The unstable cave ceiling collapses. 02815_ Shotgun destroyed. 02816_ The unstable cave ceiling collapses. 02819_ T-07 Excavator destroyed. 02819_ R-06 Scavenger destroyed. 02820_ Hvy. Assault Rifle destroyed. 02822_ K-01 Serf collects debris. 02823_ The unstable cave ceiling collapses. 02828_ K-01 Serf destroyed. Map ----- +----------------------------------------------------+ | ?????????????????????????????????????????????? | | ?????????????????????????????????????????????? | | ?????????????????????????????????????????????? | | ?????????????????????????????????????????????? | | ?????????????????????????????????????????????? | | ?????????????????????????????????????????????? | | ??????????????????????????? #??????????????# ? | | ?????????????????????????? ####?????????# ? | | ?????????????????????????? #???????# ?? | | ?????????????????????????# ???#### ?? | | ??????????????????????????# #### ??? | | ??????????????????????????# =%???? | | ???????????????????????????? !%#???? | | ?????????????????????????????? !##??? | | ???????????????????????????????# ##?? | | ????????????????????????????????# #?? | | ???????????????????????????????## #??? | | ?????????????????######???????## # #??? | | ????????????????## ######?## # #??? | | ????????????????# # ### #??? | | ????????????????# "" ## # #??? | | ????????????????# " # ## # ####??? | | ????????????????## ##???? | | ????????????????# d ##??? | | ????????????##### d #??? | | ????????##### % @ #??? | | ????????# # ## ## ! #?? | | ????????# ###### ## ##*%## #? | | ????????# ####????# #?# # !#?##? | | ????????## ####???????# #??##%"#???? | | ?????????# ######??????????# #???? ???? | | ????????# ##?#####??????#### #???? ??? | | ??????# < #?##= *###????# #???? ?? | | ??????# #?#* ##???# ####???? # | | ??????# ###### #???# #??????? ??? | | ??????##### ## #???# #?????????????? | | ??????????###?# #???# ######????????? | | ??????????????# #### #???# #???????## | | ??############# #### ##??# #### #???##### | | ??# # #### #??# ##### | | ??# """" """" """" ## %%#??# | | ??# """" """" """" ### #####??###### | | ??# """" """" """" #?# ####???????????## | | ??# #?# #???????????????## %% | | ??# """" """" """" #?# #????????????????# | | ??# """" """" """" #?# ????????????????## | | ??# """" """" """" #?###?????????????????# | | ??# #?????????????????????## | | ??# """" """" """" #??????????????????????## | | ??# """" """" """" #???????????????????????## | +----------------------------------------------------+ Best States ------------- Heat Dissipation 38 Energy Generation 14 Energy Capacity 160 Matter Stores 300 Matter Capacity 300 Sight Range 16 Terrain Scan Density 10 Armor Coverage 225 Evasion (%) 40 Recoil Reduction 3 Item Schematics ----------------- None Robot Schematics ------------------ None Fabricated ------------ Nothing Repaired ---------- Nothing Studied --------- Lgt. Treads | -9/Materials | Hacked Wheel | -9/Materials | Hacked Com. Wheel | -9/Materials | Hacked Alien Tech Used ----------------- None Achievements -------------- None Challenges ------------ None Game ------ Seed PointyZioniteProcessor Manual? 0 Play Time 00:29:46 Cumulative 29.1 hours Start 2026.06.24 @ 10:38:16 End 2026.06.24 @ 18:25:16 Sessions 7 Manual Loads 0 Difficulty Rogue Special Mode None Game No. 40 Rogue 36 Adventurer 4 Explorer 0 Win Type - Total 0 Types 0/0/0/0/0/0/0/0/0/0 Lore% 9 Gallery% 13 Achievement% 14 Wizard Run 0 Options --------- Layout 2 ASCII 0 Keyboard 1 Movement Numpad Keybinds 0 Fullscreen 1 Font 24/Terminus Map View 50x44 Zoom Use 24% Tactical HUD 1 Map Filters NONE Filters NONE Steam 1 RUN: 9b3d03a9-37d7-4609-ac35-1d4dc218e04d